fUSD/lending_fUSD_20241121
["ID","MTS","AMOUNT","RATE_DAILY","PERIOD"]
[342933196,1732210287365,-275.63088718,0.000411,120]
[342933197,1732210287374,-275.63088718,0.000411,120]
[342933198,1732210287383,-275.63088718,0.000411,120]
[342933199,1732210287393,-275.63088718,0.000411,120]
[342933200,1732210287403,-275.63088718,0.000411,120]
[342933201,1732210287413,-275.63088718,0.000411,120]
[342933202,1732210287422,-275.63088718,0.000411,120]
[342933203,1732210287432,-275.63088718,0.000411,120]
[342933204,1732210287441,-275.63,0.000411,120]
[342933205,1732210287451,-209.47405872,0.00041104,30]
[342933206,1732210287535,-500.0,0.00040273,11]
[342933207,1732210287544,-151.52594128,0.00041104,30]
[342933208,1732210287554,-150.0,0.00041104,30]
[342933209,1732210287563,-150.0,0.00041104,30]
[342933210,1732210287573,-150.0,0.00041104,30]
[342933211,1732210287582,-150.0,0.00041104,30]
[342933212,1732210287592,-150.0,0.00041104,30]
[342933213,1732210287602,-150.0,0.00041104,30]
[342933214,1732210287611,-150.0,0.00041118,30]
[342933215,1732210287620,-152.0,0.00041173,3]
[342933216,1732210287630,-195.01397373,0.00041178,30]
[342933217,1732210287639,-2110.0,0.00041191,30]
[342933218,1732210287648,-720.09788499,0.00041238,2]
[342933219,1732210287660,-773.94511501,0.00041238,2]
[342933220,1732210287669,-3748.0,0.00041238,2]
[342933221,1732210287679,-616.00226277,0.00041238,2]
[342933222,1732210287690,-643.99773723,0.00041238,2]
[342933223,1732210287699,-815.0,0.00041238,2]
[342933224,1732210287711,-1359.22421657,0.00041238,2]
[342933225,1732210287727,-500.0,0.00038904,11]
[342933226,1732210287737,-34.362006,0.00041238,2]
[342933227,1732210287748,-345.1890866,0.00041238,2]
[342933228,1732210287759,-1775.22469083,0.00041238,2]
[342933229,1732210287770,-919.0,0.00041238,2]
[342933230,1732210287779,-1255.0,0.00041238,2]
[342933231,1732210287788,-565.776,0.00041238,2]
[342933232,1732210287797,-1157.0,0.00041238,2]
[342933233,1732210287807,-5935.0,0.00041238,2]
[342933234,1732210287817,-150.0,0.00041238,2]
[342933235,1732210287827,-629.0,0.00041238,2]
[342933236,1732210287835,-245.1978,0.00041288,30]
[342933237,1732210287845,-315.8090774,0.000413,2]
[342933238,1732210287854,-2998.02,0.00041315,120]
[342933239,1732210287863,-725.87255768,0.00041353,2]
[342933240,1732210287896,-500.0,0.00038356,11]
[342933241,1732210287907,-500.0,0.00039178,11]
[342933242,1732210287916,-625.79,0.00039178,11]
[342933243,1732210287926,-500.0,0.00039178,11]
[342933244,1732210287935,-294.06744232,0.00041353,2]
[342933245,1732210287945,-500.0,0.00041369,11]
[342933246,1732210287955,-500.0,0.00041369,11]
[342933247,1732210287965,-500.0,0.00041369,11]
[342933248,1732210287974,-500.0,0.00041369,11]
[342933249,1732210287984,-500.0,0.00041369,11]
[342933250,1732210287993,-500.0,0.00041369,11]
[342933251,1732210288003,-500.0,0.00041369,11]
[342933252,1732210288012,-500.0,0.00041369,11]
[342933253,1732210288021,-500.0,0.00041369,11]
[342933254,1732210288031,-584.75,0.00041369,11]
[342933255,1732210288040,-629.31,0.00041369,60]
[342933256,1732210288049,-500.0,0.00041369,11]
[342933257,1732210288059,-610.11,0.00041369,11]
[342933258,1732210288069,-500.0,0.00041369,11]
[342933259,1732210288079,-590.3,0.00041369,11]
[342933260,1732210288088,-500.0,0.00041369,11]
[342933261,1732210288097,-693.08,0.00041369,11]
[342933262,1732210288107,-500.0,0.00041369,11]
[342933263,1732210288116,-730.17,0.00041369,11]
[342933264,1732210288125,-500.0,0.00041369,11]
[342933265,1732210288135,-500.0,0.00041369,11]
[342933266,1732210288145,-500.0,0.00041369,11]
[342933267,1732210288154,-828.01,0.00041369,11]
[342933268,1732210288164,-500.0,0.00041369,11]
[342933269,1732210288173,-421.71497071,0.00041369,11]
[342933270,1732210288182,-500.0,0.00041369,11]
[342933271,1732210288191,-280.04886143,0.00041369,11]
[342933272,1732210288201,-500.0,0.00041369,11]
[342933273,1732210288213,-609.78,0.00041369,11]
[342933274,1732210288222,-360.55511449,0.00041369,11]
[342933275,1732210288231,-300.0,0.00041369,11]
[342933276,1732210288241,-305.5162236,0.00041369,11]
[342933277,1732210288250,-1000.0,0.00041369,11]
[342933278,1732210288259,-561.96,0.00041369,11]
[342933279,1732210288268,-34.798645,0.00041369,11]
[342933280,1732210288748,-248.06,0.0003498,10]
[342933281,1732210288758,-500.0,0.00038356,11]
[342933282,1732210288768,-62.40176034,0.00038356,11]
[342933283,1732210288945,-437.59823966,0.00038356,11]
[342933284,1732210288956,-500.0,0.00038356,11]
[342933285,1732210288966,-2194.6,0.00038356,2]
[342933286,1732210289129,-500.0,0.00038356,11]
[342933287,1732210289160,-500.0,0.0003863,11]
[342933288,1732210289169,-500.0,0.0003863,11]
[342933289,1732210289179,-500.0,0.0003863,11]
[342933290,1732210289189,-2194.6,0.0003863,2]
[342933291,1732210289198,-500.0,0.0003863,11]
[342933292,1732210289211,-500.0,0.00038904,11]
[342933293,1732210289220,-500.0,0.00038904,11]
[342933294,1732210289230,-2194.6,0.00038904,2]
[342933295,1732210289239,-500.0,0.00039178,11]
[342933296,1732210289249,-500.0,0.00039452,11]
[342933297,1732210289258,-500.0,0.00039726,11]
[342933298,1732210289268,-500.0,0.0004,11]
[342933299,1732210289277,-500.0,0.00040273,11]
[342933300,1732210289286,-500.0,0.00040547,11]
[342933301,1732210289296,-500.0,0.00040547,11]
[342933302,1732210289306,-500.0,0.00040821,11]
[342933303,1732210289315,-527.64,0.00040821,11]
[342933304,1732210289325,-500.0,0.00041095,11]
[342933305,1732210289335,-499.431355,0.00041369,11]
[342933306,1732210289344,-602.41,0.00041369,11]
[342933307,1732210289353,-597.09,0.00041369,11]
[342933308,1732210289363,-526.42,0.00041369,11]
[342933309,1732210289372,-500.0,0.00041369,11]
[342933310,1732210289381,-500.0,0.00041369,11]
[342933311,1732210289391,-500.0,0.00041369,11]
[342933312,1732210289400,-332.64237929,0.00041369,11]
[342933313,1732210289409,-500.0,0.00041369,11]
[342933314,1732210289418,-500.0,0.00041369,11]
[342933315,1732210289428,-608.28,0.00041369,11]
[342933316,1732210289437,-500.0,0.00041369,11]
[342933317,1732210289447,-537.67,0.00041369,11]
[342933318,1732210289460,-500.0,0.00041369,11]
[342933319,1732210289471,-502.0,0.00041369,11]
[342933320,1732210289480,-603.82,0.00041369,11]
[342933321,1732210289490,-500.0,0.00041369,11]
[342933322,1732210289499,-552.31,0.00041369,11]
[342933323,1732210289509,-728.81,0.00041369,11]
[342933324,1732210289518,-500.0,0.00041369,11]
[342933325,1732210289527,-703.69,0.00041369,11]
[342933326,1732210289537,-535.45,0.00041369,11]
[342933327,1732210289546,-500.0,0.00041369,11]
[342933328,1732210289557,-759.87,0.00041369,11]
[342933329,1732210289566,-631.14,0.00041369,11]
[342933330,1732210289576,-701.78,0.00041369,11]
[342933331,1732210289586,-605.95,0.00041369,11]
[342933332,1732210289595,-500.0,0.00041369,11]
[342933333,1732210289605,-277.31286921,0.00041369,11]
[342933334,1732210289615,-593.24,0.00041369,11]
[342933335,1732210289625,-500.0,0.00041369,11]
[342933336,1732210289635,-500.0,0.00041369,11]
[342933337,1732210289644,-526.23,0.00041369,11]
[342933338,1732210289654,-500.0,0.00041369,11]
[342933339,1732210289663,-500.0,0.00041369,11]
[342933340,1732210289674,-815.09,0.00041369,11]
[342933341,1732210289684,-500.0,0.00041369,11]
[342933342,1732210289694,-545.99,0.00041369,11]
[342933343,1732210289705,-602.84,0.00041369,11]
[342933344,1732210289715,-500.0,0.00041369,11]
[342933345,1732210289723,-605.03,0.00041369,11]
[342933346,1732210289733,-500.0,0.00041369,11]
[342933347,1732210289742,-500.0,0.00041369,11]
[342933348,1732210289751,-500.0,0.00041369,11]
[342933349,1732210289760,-1246.63,0.00041369,11]
[342933350,1732210289771,-500.0,0.00041369,11]
[342933351,1732210289781,-500.0,0.00041369,11]
[342933352,1732210289790,-598.18,0.00041369,11]
[342933353,1732210289800,-500.0,0.00041369,11]
[342933354,1732210289809,-1268.36,0.00041369,11]
[342933355,1732210289818,-800.15,0.00041369,11]
[342933356,1732210289827,-1024.7,0.00041369,11]
[342933357,1732210289836,-500.0,0.00041369,11]
[342933358,1732210289845,-151.0,0.00041369,14]
[342933359,1732210289855,-500.0,0.00041369,11]
[342933360,1732210289864,-708.2,0.00041369,11]
[342933361,1732210289874,-500.0,0.00041369,11]
[342933362,1732210289884,-500.0,0.00041369,11]
[342933363,1732210289893,-887.84,0.00041369,11]
[342933364,1732210289903,-36.73583184,0.00041369,11]
[342933365,1732210289920,-1840.87450557,0.00039178,2]
[342933366,1732210289932,-353.72549443,0.00039178,2]
[342933367,1732210289941,-712.21416816,0.00041369,11]
[342933368,1732210289950,-625.3,0.00041369,11]
[342933369,1732210289964,-500.0,0.00041369,11]
[342933370,1732210289974,-562.06,0.00041369,11]
[342933371,1732210289984,-696.5,0.00041369,11]
[342933372,1732210289993,-500.0,0.00041369,11]
[342933373,1732210290003,-662.39,0.00041369,11]
[342933374,1732210290012,-500.0,0.00041369,11]
[342933375,1732210290022,-575.84,0.00041369,11]
[342933376,1732210290032,-517.28,0.00041369,11]
[342933377,1732210290041,-602.81,0.00041369,11]
[342933378,1732210290051,-500.0,0.00041369,11]
[342933379,1732210290060,-500.0,0.00041369,11]
[342933380,1732210290070,-500.0,0.00041369,11]
[342933381,1732210290079,-624.49,0.00041369,11]
[342933382,1732210290089,-500.0,0.00041369,11]
[342933383,1732210290098,-500.0,0.00041369,11]
[342933384,1732210290107,-500.0,0.00041369,11]
[342933385,1732210290117,-206.2617783,0.00041369,11]
[342933386,1732210290126,-1406.57,0.00041369,11]
[342933387,1732210290135,-1500.25,0.00041369,11]
[342933388,1732210290145,-500.0,0.00041369,11]
[342933389,1732210290154,-868.47,0.00041369,11]
[342933390,1732210290164,-756.78,0.00041369,11]
[342933391,1732210290174,-1264.04,0.00041369,11]
[342933392,1732210290183,-723.44,0.00041369,11]
[342933393,1732210290193,-1164.27,0.00041369,11]
[342933394,1732210290207,-500.0,0.00041369,11]
[342933395,1732210290216,-500.0,0.00041369,11]
[342933396,1732210290226,-852.66,0.00041369,11]
[342933397,1732210290235,-361.25486649,0.00041369,11]
[342933398,1732210290245,-1951.28,0.00041369,11]
[342933399,1732210290255,-2111.16,0.00041369,11]
[342933400,1732210290266,-1857.8,0.00041369,11]
[342933401,1732210290276,-9039.41,0.00041369,11]
[342933402,1732210290285,-500.0,0.00041369,11]
[342933403,1732210290295,-500.0,0.00041369,11]
[342933404,1732210290305,-556.13,0.00041369,11]
[342933405,1732210290314,-500.0,0.00041369,11]
[342933406,1732210290324,-500.0,0.00041369,11]
[342933407,1732210290333,-500.0,0.00041369,11]
[342933408,1732210290342,-2046.35,0.00041369,11]
[342933409,1732210290351,-500.0,0.00041369,11]
[342933410,1732210290360,-500.0,0.00041369,11]
[342933411,1732210290370,-519.48,0.00041369,11]
[342933412,1732210290379,-500.0,0.00041369,11]
[342933413,1732210290389,-599.11,0.00041369,11]
[342933414,1732210290399,-154.06501038,0.00041369,11]
[342933415,1732210290415,-500.0,0.00038904,11]
[342933416,1732210290424,-345.93498962,0.00041369,11]
[342933417,1732210290434,-1240.59,0.00041369,11]
[342933418,1732210290444,-1225.35,0.00041369,11]
[342933419,1732210290455,-525.67858658,0.00041369,11]
[342933420,1732210290465,-984.48,0.00041369,11]
[342933421,1732210290474,-500.0,0.00041369,11]
[342933422,1732210290483,-500.0,0.00041369,11]
[342933423,1732210290493,-779.37,0.00041369,11]
[342933424,1732210290503,-500.0,0.00041369,11]
[342933425,1732210290512,-985.32,0.00041369,11]
[342933426,1732210290522,-725.66,0.00041369,11]
[342933427,1732210290531,-1197.37,0.00041369,11]
[342933428,1732210290540,-500.0,0.00041369,11]
[342933429,1732210290551,-3093.19,0.00041369,11]
[342933430,1732210290560,-500.0,0.00041369,11]
[342933431,1732210290570,-500.0,0.00041369,11]
[342933432,1732210290579,-1700.89,0.00041369,11]
[342933433,1732210290589,-1350.29,0.00041369,11]
[342933434,1732210290599,-790.01,0.00041369,11]
[342933435,1732210290609,-1047.03,0.00041369,11]
[342933436,1732210290619,-500.0,0.00041369,11]
[342933437,1732210290628,-1055.86,0.00041369,11]
[342933438,1732210290637,-457.17734496,0.00041369,7]
[342933439,1732210290646,-452.49157578,0.00041369,11]
[342933440,1732210290656,-760.51,0.00041369,11]
[342933441,1732210290665,-1244.04,0.00041369,11]
[342933442,1732210290674,-1221.84,0.00041369,11]
[342933443,1732210290683,-747.32445658,0.00041369,11]
[342933444,1732210290706,-150.0,0.00040188,2]
[342933445,1732210290715,-307.64554342,0.00041369,11]
[342933446,1732210290724,-1282.37,0.00041369,11]
[342933447,1732210290733,-500.0,0.00041369,11]
[342933448,1732210290742,-3596.65,0.00041369,11]
[342933449,1732210290752,-500.0,0.00041369,11]
[342933450,1732210290762,-500.0,0.00041369,11]
[342933451,1732210290773,-500.0,0.00041369,11]
[342933452,1732210290783,-1509.38,0.00041369,11]
[342933453,1732210290792,-1145.26,0.00041369,11]
[342933454,1732210290801,-1009.48,0.00041369,11]
[342933455,1732210290810,-922.38,0.00041369,11]
[342933456,1732210290819,-2056.9,0.00041369,11]
[342933457,1732210290828,-500.0,0.00041369,11]
[342933458,1732210290838,-2912.74,0.00041369,11]
[342933459,1732210290847,-500.0,0.00041369,11]
[342933460,1732210290856,-1433.4,0.00041369,11]
[342933461,1732210290866,-857.27,0.00041369,11]
[342933462,1732210290875,-660.01,0.00041369,11]
[342933463,1732210290885,-505.39,0.00041369,11]
[342933464,1732210290895,-652.74,0.00041369,11]
[342933465,1732210290905,-527.56,0.00041369,11]
[342933466,1732210290915,-1022.92,0.00041369,11]
[342933467,1732210290924,-584.37,0.00041369,11]
[342933468,1732210290934,-500.0,0.00041369,11]
[342933469,1732210290943,-515.32,0.00041369,11]
[342933470,1732210290953,-813.78,0.00041369,11]
[342933471,1732210290963,-574.64,0.00041369,11]
[342933472,1732210290972,-2108.57,0.00041369,11]
[342933473,1732210290982,-500.0,0.00041369,11]
[342933474,1732210290991,-558.72,0.00041369,11]
[342933475,1732210291000,-1664.84,0.00041369,11]
[342933476,1732210291010,-3779.45,0.00041369,11]
[342933477,1732210291019,-2329.59,0.00041369,11]
[342933478,1732210291027,-548.10126716,0.00041369,11]
[342933479,1732210291036,-500.0,0.00041369,11]
[342933480,1732210291045,-3931.15,0.00041369,11]
[342933481,1732210291055,-500.0,0.00041369,11]
[342933482,1732210291066,-1196.21,0.00041369,11]
[342933483,1732210291076,-904.02,0.00041369,11]
[342933484,1732210291085,-721.67,0.00041369,11]
[342933485,1732210291095,-2024.69,0.00041369,11]
[342933486,1732210291104,-500.0,0.00041369,11]
[342933487,1732210291115,-794.12,0.00041369,7]
[342933488,1732210291125,-500.0,0.00041369,11]
[342933489,1732210291135,-4525.19,0.00041369,11]
[342933490,1732210291144,-500.0,0.00041369,11]
[342933491,1732210291154,-500.0,0.00041369,11]
[342933492,1732210291164,-897.8,0.00041369,11]
[342933493,1732210291173,-12306.64,0.00041369,11]
[342933494,1732210291183,-1287.17,0.00041369,11]
[342933495,1732210291192,-815.54,0.00041369,11]
[342933496,1732210291202,-898.87,0.00041369,11]
[342933497,1732210291212,-500.0,0.00041369,11]
[342933498,1732210291222,-500.0,0.00041369,11]
[342933499,1732210291231,-639.05,0.00041369,11]
[342933500,1732210291241,-1660.99,0.00041369,11]
[342933501,1732210291250,-500.0,0.00041369,11]
[342933502,1732210291260,-660.46,0.00041369,11]
[342933503,1732210291269,-500.0,0.00041369,11]
[342933504,1732210291279,-643.11,0.00041369,11]
[342933505,1732210291288,-450.80190807,0.00041369,11]
[342933506,1732210291297,-500.0,0.00041369,11]
[342933507,1732210291307,-531.08215747,0.00041369,11]
[342933508,1732210291317,-515.73,0.00041369,11]
[342933509,1732210291327,-1804.93,0.00041369,11]
[342933510,1732210291336,-502.43524151,0.00041369,11]
[342933511,1732210291346,-500.0,0.00041369,11]
[342933512,1732210291355,-856.28,0.00041369,11]
[342933513,1732210291365,-751.73,0.00041369,11]
[342933514,1732210291375,-696.62,0.00041369,11]
[342933515,1732210291383,-219.72,0.00041369,11]
[342933516,1732210291393,-195.01397373,0.0004137,30]
[342933517,1732210291402,-999.0,0.00041397,120]
[342933518,1732210291411,-1028.24469328,0.00041397,120]
[342933519,1732210291421,-1096.0,0.000414,7]
[342933520,1732210291430,-153.35,0.00041409,2]
[342933521,1732210291439,-159.76949273,0.00041461,28]
[342933522,1732210291447,-150.31,0.00041466,2]
[342933523,1732210291459,-245.1978,0.00041488,30]
[342933524,1732210291468,-14744.11957107,0.0004151,15]
[342933525,1732210291478,-151.0,0.00041543,14]
[342933526,1732210291487,-195.01397373,0.00041562,30]
[342933527,1732210291496,-1198.0,0.000416,7]
[342933528,1732210291505,-507.2605,0.00041611,2]
[342933529,1732210291515,-5827.9836697,0.00041615,2]
[342933530,1732210291524,-631.134223,0.00041615,2]
[342933531,1732210291533,-790.0266341,0.00041615,2]
[342933532,1732210291542,-687.6822085,0.00041615,2]
[342933533,1732210291551,-239.6977128,0.00041643,11]
[342933534,1732210291560,-500.0,0.00041643,11]
[342933535,1732210291569,-500.0,0.00041643,11]
[342933536,1732210291578,-500.0,0.00041643,11]
[342933537,1732210291587,-500.0,0.00041643,11]
[342933538,1732210291595,-500.0,0.00041643,11]
[342933539,1732210291604,-500.0,0.00041643,11]
[342933540,1732210291614,-224.53870377,0.00041643,11]
[342933541,1732210291623,-500.0,0.00041643,11]
[342933542,1732210291631,-584.75,0.00041643,11]
[342933543,1732210291640,-629.31,0.00041643,60]
[342933544,1732210291650,-500.0,0.00041643,11]
[342933545,1732210291659,-610.11,0.00041643,11]
[342933546,1732210291668,-500.0,0.00041643,11]
[342933547,1732210291677,-590.3,0.00041643,11]
[342933548,1732210291692,-259.53848668,0.00041643,11]
[342933549,1732210291701,-693.08,0.00041643,11]
[342933550,1732210291718,-500.0,0.00041643,11]
[342933551,1732210291727,-730.17,0.00041643,11]
[342933552,1732210291736,-500.0,0.00041643,11]
[342933553,1732210291746,-500.0,0.00041643,11]
[342933554,1732210291755,-500.0,0.00041643,11]
[342933555,1732210291767,-500.0,0.00041643,11]
[342933556,1732210291778,-500.0,0.00041643,11]
[342933557,1732210291788,-500.0,0.00041643,11]
[342933558,1732210291798,-609.78,0.00041643,11]
[342933559,1732210291808,-300.0,0.00041643,11]
[342933560,1732210291819,-1000.0,0.00041643,11]
[342933561,1732210291830,-561.96,0.00041643,11]
[342933562,1732210291841,-534.23,0.00041643,11]
[342933563,1732210291851,-602.41,0.00041643,11]
[342933564,1732210291862,-597.09,0.00041643,11]
[342933565,1732210291873,-526.42,0.00041643,11]
[342933566,1732210291882,-500.0,0.00041643,11]
[342933567,1732210291892,-500.0,0.00041643,11]
[342933568,1732210291902,-500.0,0.00041643,11]
[342933569,1732210291911,-500.0,0.00041643,11]
[342933570,1732210291920,-500.0,0.00041643,11]
[342933571,1732210291931,-608.28,0.00041643,11]
[342933572,1732210291940,-500.0,0.00041643,11]
[342933573,1732210291949,-537.67,0.00041643,11]
[342933574,1732210292119,-503.60415464,0.00041643,11]
[342933575,1732210292130,-502.0,0.00041643,11]
[342933576,1732210292139,-603.82,0.00041643,11]
[342933577,1732210292148,-500.0,0.00041643,11]
[342933578,1732210292157,-552.31,0.00041643,11]
[342933579,1732210292166,-728.81,0.00041643,11]
[342933580,1732210292176,-500.0,0.00041643,11]
[342933581,1732210292185,-703.69,0.00041643,11]
[342933582,1732210292195,-535.45,0.00041643,11]
[342933583,1732210292204,-500.0,0.00041643,11]
[342933584,1732210292217,-759.87,0.00041643,11]
[342933585,1732210292227,-701.78,0.00041643,11]
[342933586,1732210292236,-605.95,0.00041643,11]
[342933587,1732210292245,-500.0,0.00041643,11]
[342933588,1732210292254,-593.24,0.00041643,11]
[342933589,1732210292264,-500.0,0.00041643,11]
[342933590,1732210292274,-500.0,0.00041643,11]
[342933591,1732210292283,-526.23,0.00041643,11]
[342933592,1732210292292,-500.0,0.00041643,11]
[342933593,1732210292302,-500.0,0.00041643,11]
[342933594,1732210292311,-815.09,0.00041643,11]
[342933595,1732210292320,-500.0,0.00041643,11]
[342933596,1732210292330,-545.99,0.00041643,11]
[342933597,1732210292339,-602.84,0.00041643,11]
[342933598,1732210292348,-500.0,0.00041643,11]
[342933599,1732210292357,-605.03,0.00041643,11]
[342933600,1732210292367,-500.0,0.00041643,11]
[342933601,1732210292376,-500.0,0.00041643,11]
[342933602,1732210292387,-500.0,0.00041643,11]
[342933603,1732210292397,-1246.63,0.00041643,11]
[342933604,1732210292406,-500.0,0.00041643,11]
[342933605,1732210292415,-500.0,0.00041643,11]
[342933606,1732210292425,-598.18,0.00041643,11]
[342933607,1732210292434,-500.0,0.00041643,11]
[342933608,1732210292443,-1268.36,0.00041643,11]
[342933609,1732210292452,-800.15,0.00041643,11]
[342933610,1732210292464,-1024.7,0.00041643,11]
[342933611,1732210292474,-500.0,0.00041643,11]
[342933612,1732210292483,-500.0,0.00041643,11]
[342933613,1732210292492,-708.2,0.00041643,11]
[342933614,1732210292501,-500.0,0.00041643,11]
[342933615,1732210292510,-643.17,0.00041643,11]
[342933616,1732210292520,-887.84,0.00041643,11]
[342933617,1732210292529,-748.95,0.00041643,11]
[342933618,1732210292538,-625.3,0.00041643,11]
[342933619,1732210292548,-500.0,0.00041643,11]
[342933620,1732210292557,-562.06,0.00041643,11]
[342933621,1732210292566,-696.5,0.00041643,11]
[342933622,1732210292575,-500.0,0.00041643,11]
[342933623,1732210292585,-662.39,0.00041643,11]
[342933624,1732210292594,-500.0,0.00041643,11]
[342933625,1732210292604,-575.84,0.00041643,11]
[342933626,1732210292614,-517.28,0.00041643,11]
[342933627,1732210292623,-602.81,0.00041643,11]
[342933628,1732210292633,-500.0,0.00041643,11]
[342933629,1732210292642,-500.0,0.00041643,11]
[342933630,1732210292652,-500.0,0.00041643,11]
[342933631,1732210292661,-624.49,0.00041643,11]
[342933632,1732210292671,-500.0,0.00041643,11]
[342933633,1732210292681,-345.03034984,0.00041643,11]
[342933634,1732210292690,-500.0,0.00041643,11]
[342933635,1732210292699,-1406.57,0.00041643,11]
[342933636,1732210292710,-1500.25,0.00041643,11]
[342933637,1732210292719,-500.0,0.00041643,11]
[342933638,1732210292729,-868.47,0.00041643,11]
[342933639,1732210292739,-756.78,0.00041643,11]
[342933640,1732210292748,-1264.04,0.00041643,11]
[342933641,1732210292758,-723.44,0.00041643,11]
[342933642,1732210292772,-1164.27,0.00041643,11]
[342933643,1732210292782,-500.0,0.00041643,11]
[342933644,1732210292791,-461.67370295,0.00041643,11]
[342933645,1732210292800,-852.66,0.00041643,11]
[342933646,1732210292810,-1951.28,0.00041643,11]
[342933647,1732210292820,-2111.16,0.00041643,11]
[342933648,1732210292829,-1857.8,0.00041643,11]
[342933649,1732210292839,-9039.41,0.00041643,11]
[342933650,1732210292848,-500.0,0.00041643,11]
[342933651,1732210292859,-500.0,0.00041643,11]
[342933652,1732210292869,-556.13,0.00041643,11]
[342933653,1732210292879,-500.0,0.00041643,11]
[342933654,1732210292889,-500.0,0.00041643,11]
[342933655,1732210292898,-500.0,0.00041643,11]
[342933656,1732210292907,-2046.35,0.00041643,11]
[342933657,1732210292916,-500.0,0.00041643,11]
[342933658,1732210292926,-480.69560403,0.00041643,11]
[342933659,1732210292937,-519.48,0.00041643,11]
[342933660,1732210292946,-500.0,0.00041643,11]
[342933661,1732210292958,-599.11,0.00041643,11]
[342933662,1732210292968,-500.0,0.00041643,11]
[342933663,1732210292978,-1240.59,0.00041643,11]
[342933664,1732210292988,-1225.35,0.00041643,11]
[342933665,1732210292998,-984.48,0.00041643,11]
[342933666,1732210293009,-500.0,0.00041643,11]
[342933667,1732210293019,-616.56,0.00041643,11]
[342933668,1732210293029,-779.37,0.00041643,11]
[342933669,1732210293039,-500.0,0.00041643,11]
[342933670,1732210293049,-985.32,0.00041643,11]
[342933671,1732210293059,-725.66,0.00041643,11]
[342933672,1732210293070,-1197.37,0.00041643,11]
[342933673,1732210293079,-500.0,0.00041643,11]
[342933674,1732210293089,-3093.19,0.00041643,11]
[342933675,1732210293100,-500.0,0.00041643,11]
[342933676,1732210293110,-500.0,0.00041643,11]
[342933677,1732210293121,-1700.89,0.00041643,11]
[342933678,1732210293131,-1350.29,0.00041643,11]
[342933679,1732210293141,-62.02177078,0.00041643,11]
[342933680,1732210293367,-727.98822922,0.00041643,11]
[342933681,1732210293377,-361.92036247,0.00041643,11]
[342933682,1732210293398,-2194.6,0.00039452,2]
[342933683,1732210293408,-685.10963753,0.00041643,11]
[342933684,1732210293418,-500.0,0.00041643,11]
[342933685,1732210293428,-1055.86,0.00041643,11]
[342933686,1732210293438,-760.51,0.00041643,11]
[342933687,1732210293448,-1221.84,0.00041643,11]
[342933688,1732210293460,-1244.04,0.00041643,11]
[342933689,1732210293470,-1054.97,0.00041643,11]
[342933690,1732210293480,-1282.37,0.00041643,11]
[342933691,1732210293491,-500.0,0.00041643,11]
[342933692,1732210293501,-3596.65,0.00041643,11]
[342933693,1732210293511,-500.0,0.00041643,11]
[342933694,1732210293522,-500.0,0.00041643,11]
[342933695,1732210293533,-500.0,0.00041643,11]